bitfinex/quotes_SOLUSD_20250731
["timestamp","ask_amount","ask_price","bid_price","bid_amount"]
[1753996326074,40.84,174.82,174.81,6.81272449]
[1753996326263,40.84,174.82,174.81,7.53272449]
[1753996327983,40.84,174.82,174.81,13.25322102]
[1753996328179,0.69,174.88,174.81,13.25322102]
[1753996328393,0.69,174.88,174.87,6.81272449]
[1753996328572,41.53,174.88,174.87,6.81272449]
[1753996330265,45.36604693,174.88,174.87,6.81272449]
[1753996331387,49.63164918,174.88,174.87,6.81272449]
[1753996332886,48.94164918,174.88,174.87,6.81272449]
[1753996333079,62.16258044,174.88,174.82,6.81272449]
[1753996333280,15.60437367,174.87,174.82,6.81272449]
[1753996333475,15.60437367,174.86,174.81,6.81272449]
[1753996333674,41.53,174.85,174.81,6.81272449]
[1753996333883,0.69,174.84,174.81,6.81272449]
[1753996334193,5.71755288,174.9,174.83,6.81272449]
[1753996334491,45.10895917,174.89,174.84,0.72]
[1753996334782,14.51957462,174.88,174.82,9.82]
[1753996334982,8.80134504,174.87,174.82,9.82]
[1753996335160,40.84,174.86,174.82,9.82]
[1753996335364,40.84,174.86,174.82,5.72009367]
[1753996335690,40.84,174.86,174.85,6.81272449]
[1753996336267,44.6867655,174.86,174.85,6.81272449]
[1753996337277,48.96456024,174.86,174.85,6.81272449]
[1753996340894,0.69,174.9,174.85,13.25191236]
[1753996341090,40.84,174.88,174.83,9.82]
[1753996341279,8.8277004,174.87,174.83,9.82]
[1753996341486,40.84,174.86,174.84,0.72]
[1753996342402,40.84,174.86,174.85,6.43918787]
[1753996342579,40.84,174.86,174.85,13.25191236]
[1753996344498,40.84,174.86,174.85,6.81272449]
[1753996344807,41.53,174.86,174.81,6.44049653]
[1753996345096,41.53,174.86,174.85,6.81272449]
[1753996345280,49.67307652,174.86,174.85,6.81272449]
[1753996346496,45.38737947,174.86,174.85,6.81272449]
[1753996346998,49.67336788,174.86,174.84,6.81272449]
[1753996347302,4.54737947,174.85,174.84,6.81272449]
[1753996347504,3.85737947,174.85,174.84,6.81272449]
[1753996349427,40.84,174.86,174.84,7.53272449]
[1753996349714,40.84,174.86,174.85,6.81272449]
[1753996349886,44.69761738,174.86,174.85,6.81272449]
[1753996351095,45.38761738,174.86,174.85,6.81272449]
[1753996352994,45.38750729,174.86,174.85,6.81272449]
[1753996354119,4.54750729,174.86,174.85,6.81272449]
[1753996354319,40.82,174.86,174.85,6.81272449]
[1753996354625,44.67750729,174.86,174.85,6.81272449]
[1753996355722,3.85750729,174.86,174.85,6.81272449]
[1753996355898,40.82,174.86,174.85,6.81272449]
[1753996356098,44.67750729,174.86,174.85,6.81272449]
[1753996356904,44.67750729,174.86,174.85,7.52272449]
[1753996357196,40.82,174.88,174.85,13.24191236]
[1753996357510,40.82,174.88,174.87,6.81272449]
[1753996357819,44.67677325,174.88,174.87,6.81272449]
[1753996358797,40.82,174.88,174.87,6.81272449]
[1753996359718,41.51,174.88,174.87,6.81272449]
[1753996359915,45.36603016,174.88,174.87,6.81272449]
[1753996362921,51.08423693,174.88,174.85,6.81272449]
[1753996363225,8.83031237,174.87,174.85,6.81272449]
[1753996363430,41.51,174.86,174.85,6.81272449]
[1753996363726,45.36603016,174.86,174.85,6.81272449]
[1753996368127,44.67603016,174.86,174.85,6.81272449]
[1753996369722,45.36603016,174.86,174.85,6.81272449]
[1753996371326,55.37163504,174.86,174.82,0.06]
[1753996371629,8.83272833,174.85,174.82,6.87272449]
[1753996371838,49.63272833,174.84,174.82,6.87272449]
[1753996372130,3.85603016,174.83,174.82,6.87272449]
[1753996372428,8.14349029,174.83,174.82,6.87272449]
[1753996373604,14.55333242,174.83,174.82,0.06]
[1753996373810,23.50999584,174.83,174.82,0.06]
[1753996376010,66.29467981,174.83,174.82,0.06]
[1753996377608,40.29467981,174.83,174.82,1e-08]
[1753996377924,16.78468397,174.81,174.8,1e-08]
[1753996378131,74.68483768,174.81,174.8,1e-08]
[1753996378332,75.37483768,174.81,174.8,1e-08]
[1753996378919,75.36899321,174.81,174.8,1e-08]
[1753996379611,81.08948974,174.81,174.8,1e-08]
[1753996381637,16.78468397,174.8,174.79,1e-08]
[1753996381834,42.19781627,174.8,174.78,1e-08]
[1753996382137,58.60430924,174.79,174.78,1e-08]
[1753996382919,64.32546033,174.79,174.78,1e-08]
[1753996383117,57.51273584,174.79,174.78,1e-08]
[1753996383320,72.15932535,174.79,174.78,1e-08]
[1753996384036,78.97204984,174.79,174.78,1e-08]
[1753996384220,78.9490449,174.79,174.78,1e-08]
[1753996385460,8.12048535,174.79,174.78,1e-08]
[1753996385631,5.72038869,174.82,174.78,14.28544899]
[1753996385939,40.82,174.81,174.79,0.66]
[1753996386547,2.98474097,174.85,174.79,0.66]
[1753996386744,40.82,174.84,174.79,0.66]
[1753996386917,40.82,174.84,174.83,6.81272449]
[1753996387123,40.82,174.84,174.83,7.47272449]
[1753996392250,40.82,174.84,174.83,0.66]
[1753996392452,40.82,174.84,174.83,7.47272449]
[1753996395949,2.98407015,174.89,174.83,7.47272449]
[1753996396130,5.71744888,174.91,174.88,6.81272449]
[1753996396333,40.8,174.9,174.88,0.66]
[1753996397358,40.8,174.9,174.84,0.57195149]
[1753996397359,40.8,174.9,174.85,5.71912576]
[1753996397529,40.8,174.9,174.89,7.47272449]
[1753996397932,2.98295388,174.95,174.89,7.47272449]
[1753996398148,0.66,174.96,174.87,6.81272449]
[1753996398149,40.78,174.94,174.9,0.66]
[1753996398347,40.78,174.94,174.91,0.66]
[1753996398549,40.78,174.94,174.87,7.38457786]
[1753996398728,40.78,174.94,174.91,0.66]
[1753996399050,40.78,174.94,174.92,0.66]
[1753996399260,44.25250861,174.97,174.93,7.47272449]
[1753996399429,0.03,174.97,174.96,6.81272449]
[1753996399629,40.81,174.97,174.96,7.47272449]
[1753996402063,40.81,174.97,174.96,6.81272449]
[1753996403936,41.47,174.97,174.94,6.81272449]
[1753996404254,0.66,174.96,174.92,6.81272449]
[1753996404641,0.66,174.95,174.92,6.81272449]
[1753996404843,40.76,174.94,174.92,6.81272449]
[1753996405037,0.03,174.97,174.93,7.47272449]
[1753996405245,0.03,174.97,174.96,13.62544898]
[1753996405753,0.03,174.97,174.96,6.81272449]
[1753996406049,6.40526547,174.97,174.93,6.81272449]
[1753996406255,41.42,174.96,174.94,6.81272449]
[1753996407152,47.13568258,174.96,174.93,6.81272449]
[1753996407352,0.66,174.95,174.93,6.81272449]
[1753996407552,46.47568258,174.96,174.92,6.81272449]
[1753996407764,40.79,174.97,174.95,6.81272449]
[1753996407934,0.66,174.96,174.92,6.81272449]
[1753996408463,0.66,174.95,174.92,6.81272449]
[1753996408636,40.76,174.94,174.92,6.81272449]
[1753996408970,41.42,174.94,174.92,6.81272449]
[1753996409459,47.1363588,174.94,174.92,6.81272449]
[1753996410166,47.1363588,174.94,174.91,6.81272449]
[1753996417047,7.53272449,174.93,174.88,6.81272449]
[1753996417258,6.81272449,174.91,174.85,0.69]
[1753996417471,41.46,174.9,174.87,6.81272449]
[1753996418270,0.72,174.89,174.85,26.0]
[1753996418477,40.74,174.88,174.87,6.81272449]
[1753996421957,14.32061392,174.94,174.87,14.31544898]
[1753996421958,6.46625565,174.94,174.87,14.31544898]
[1753996422168,6.46625565,174.94,174.93,6.81272449]
[1753996422481,47.20625565,174.94,174.92,6.81272449]
[1753996422777,0.72,174.93,174.92,6.81272449]
[1753996423079,7.53272449,174.93,174.88,6.81272449]
[1753996423379,0.72,174.92,174.89,6.81272449]
[1753996423579,40.74,174.91,174.89,6.81272449]
[1753996423871,40.74,174.91,174.9,6.81272449]
[1753996424170,40.74,174.91,174.85,26.0]
[1753996424171,41.46,174.91,174.89,6.81272449]
[1753996424361,5.71755288,174.9,174.88,6.81272449]
[1753996424550,6.43755288,174.9,174.89,6.81272449]
[1753996425177,5.71732113,174.91,174.86,0.69]
[1753996425372,40.74,174.9,174.88,0.69]
[1753996426477,40.74,174.9,174.89,6.81272449]
[1753996427590,40.74,174.9,174.88,0.69]
[1753996427591,41.46,174.9,174.88,6.81272449]
[1753996427958,41.46,174.9,174.85,26.69]
[1753996428172,41.46,174.9,174.88,6.81272449]
[1753996428382,41.46,174.9,174.85,26.69]
[1753996428681,41.46,174.9,174.88,6.81272449]
[1753996428882,47.17755288,174.9,174.88,6.81272449]
[1753996429857,0.72,174.89,174.88,6.81272449]
[1753996430057,0.72,174.89,174.87,6.81272449]
[1753996430285,6.43791077,174.89,174.87,6.81272449]
[1753996431159,6.43791077,174.89,174.82,51.88468397]
[1753996431160,5.71791077,174.89,174.82,35.1]
[1753996431360,0.03,174.94,174.88,6.81272449]
[1753996431581,41.44,174.93,174.91,6.81272449]
[1753996431784,4.55624366,174.92,174.91,6.81272449]
[1753996431979,10.27314281,174.92,174.91,6.81272449]
[1753996433388,9.55314281,174.92,174.91,6.81272449]
[1753996435067,10.27314281,174.92,174.91,6.81272449]
[1753996436275,9.55314281,174.92,174.91,6.81272449]
[1753996436478,0.03,174.94,174.91,7.50272449]
[1753996436684,40.72,174.93,174.92,0.69]
[1753996436875,44.56305822,174.93,174.92,7.50272449]
[1753996437076,45.28305822,174.93,174.92,6.81272449]
[1753996437884,44.56305822,174.93,174.92,6.81272449]
[1753996438602,50.99963056,174.93,174.92,6.81272449]
[1753996438971,50.99963056,174.93,174.9,6.81272449]
[1753996439174,4.56305822,174.92,174.9,6.81272449]
[1753996439507,40.72,174.91,174.9,6.81272449]
[1753996439684,45.28310102,174.91,174.84,40.8194386]
[1753996439877,47.15741798,174.91,174.85,6.40918265]
[1753996440076,47.15741798,174.91,174.89,6.81272449]
[1753996440395,4.56505276,174.9,174.89,6.81272449]
[1753996440779,3.84505276,174.9,174.89,6.81272449]
[1753996441182,4.5654092,174.9,174.89,6.81272449]
[1753996441381,8.83583763,174.9,174.89,6.81272449]
[1753996441787,8.83583763,174.9,174.86,0.69]
[1753996441988,55.25371744,174.89,174.86,6.81272449]
[1753996442198,8.83583763,174.88,174.86,6.81272449]
[1753996442382,40.7,174.87,174.86,6.81272449]
[1753996442585,3.83636405,174.87,174.86,7.50272449]
[1753996442778,46.44694694,174.92,174.86,14.88733506]
[1753996442979,8.10024939,174.91,174.89,6.81272449]
[1753996443304,40.7,174.9,174.89,0.69]
[1753996443614,49.5198138,174.9,174.84,35.1]
[1753996443912,3.83664407,174.89,174.86,0.69]
[1753996444092,3.83664407,174.89,174.87,0.69]
[1753996444291,3.83664407,174.89,174.88,6.81272449]
[1753996444478,46.41762473,174.9,174.88,6.81272449]
[1753996444674,3.83487582,174.89,174.88,6.81272449]
[1753996444892,4.53487582,174.89,174.88,6.81272449]
[1753996445176,3.83487582,174.89,174.88,6.81272449]
[1753996445585,3.83487582,174.89,174.86,0.72]
[1753996445783,3.83600015,174.89,174.88,6.81272449]
[1753996446385,26.0,174.87,174.81,0.57204965]
[1753996446600,2.26834368,174.77,174.76,1e-08]
[1753996447296,2.26834368,174.77,174.76,26.00000001]
[1753996447504,2.26834368,174.77,174.76,42.78468398]
[1753996447692,0.7,174.86,174.77,16.78468397]
[1753996447900,4.26042205,174.85,174.84,6.81272449]
[1753996448286,4.26042205,174.85,174.78,47.51272449]
[1753996448287,4.26042205,174.85,174.83,6.81272449]
[1753996448490,4.26042205,174.84,174.83,6.81272449]
[1753996448700,5.71926271,174.85,174.83,6.81272449]
[1753996448908,4.26042205,174.84,174.83,6.81272449]
[1753996449082,8.0934712,174.84,174.83,6.81272449]
[1753996449402,4.26042205,174.84,174.83,6.81272449]
[1753996450522,9.55227337,174.85,174.83,6.81272449]
[1753996450707,5.71922422,174.85,174.83,6.81272449]
[1753996450895,4.25565435,174.84,174.83,6.81272449]
[1753996451202,3.8298323,174.84,174.83,6.81272449]
[1753996451408,8.08472123,174.84,174.83,6.81272449]
[1753996451799,13.80423621,174.84,174.83,6.81272449]
[1753996452182,9.54934728,174.84,174.83,6.81272449]
[1753996452398,5.71951498,174.84,174.83,6.81272449]
[1753996452813,5.71916989,174.86,174.83,6.81272449]
[1753996453115,4.95469491,174.85,174.82,6.81272449]
[1753996453421,0.7,174.84,174.82,6.81272449]
[1753996453594,5.71984213,174.83,174.82,6.81272449]
[1753996453920,6.41984213,174.83,174.82,6.81272449]
[1753996456308,6.41984213,174.83,174.8,6.81272449]
[1753996456504,5.71984213,174.83,174.8,6.81272449]
[1753996456689,0.7,174.82,174.79,40.7]
[1753996457011,0.7,174.82,174.8,6.81272449]
[1753996457688,6.42040081,174.82,174.8,6.81272449]
[1753996457915,6.42040081,174.82,174.78,26.0]
[1753996458110,15.59237646,174.81,174.76,6.8127245]
[1753996458416,4.8067615,174.84,174.8,6.81272449]
[1753996458417,5.71958127,174.84,174.8,6.81272449]
[1753996458620,5.71958127,174.84,174.79,0.5721151]
[1753996458807,0.7,174.83,174.81,6.81272449]
[1753996459003,0.7,174.83,174.79,6.81272449]
[1753996459199,3.8271667,174.83,174.82,6.81272449]
[1753996459408,3.8271667,174.84,174.82,6.81272449]
[1753996459604,5.7188608,174.86,174.83,6.81272449]
[1753996459917,5.7188608,174.86,174.84,6.81272449]
[1753996459918,4.951745,174.85,174.84,6.81272449]
[1753996460106,8.7789117,174.85,174.84,6.81272449]
[1753996460799,8.7789117,174.85,174.83,6.81272449]
[1753996460995,4.5271667,174.85,174.83,6.81272449]
[1753996461201,6.41951498,174.84,174.83,6.81272449]
[1753996461403,10.24668168,174.84,174.83,6.81272449]
[1753996461600,4.5271667,174.84,174.83,6.81272449]
[1753996461805,4.5571667,174.84,174.83,6.81272449]
[1753996462408,3.8571667,174.84,174.83,6.81272449]
[1753996462617,3.82668185,174.88,174.86,26.0]
[1753996462820,4.8367615,174.92,174.86,26.0]
[1753996462821,3.82668185,174.91,174.87,13.62544898]
[1753996463122,0.7,174.91,174.9,6.81272449]
[1753996463415,4.9525686,174.91,174.9,6.81272449]
[1753996463716,8.77925045,174.91,174.9,6.81272449]
[1753996464309,14.49647645,174.91,174.9,6.81272449]
[1753996465809,14.49647645,174.91,174.89,6.81272449]
[1753996466014,6.417226,174.91,174.9,6.81272449]
[1753996466224,9.97076786,174.91,174.9,6.81272449]
[1753996466515,8.08201221,174.91,174.9,6.81272449]
[1753996466717,0.03,174.92,174.9,7.35272449]
[1753996467015,0.03,174.92,174.91,6.81272449]
[1753996467921,3.85906019,174.92,174.91,6.81272449]
[1753996468417,0.03,174.92,174.91,6.81272449]
[1753996476518,0.69,174.92,174.91,6.81272449]
[1753996476922,10.23033091,174.92,174.91,6.81272449]
[1753996478522,9.57033091,174.92,174.91,6.81272449]
[1753996479135,5.74689915,174.92,174.91,6.81272449]
[1753996479337,9.57033091,174.92,174.91,6.81272449]
[1753996480353,10.23033091,174.92,174.91,6.81272449]
[1753996480640,0.03,174.94,174.93,26.0]
[1753996480839,0.03,174.94,174.93,32.81272449]
[1753996481735,0.03,174.94,174.93,6.81272449]
[1753996481946,13.21897005,174.94,174.9,6.81272449]
[1753996482250,6.81272449,174.91,174.87,6.81272449]
[1753996482545,6.37755288,174.9,174.87,32.81272449]
[1753996482858,5.71755288,174.9,174.87,32.81272449]
[1753996483048,5.71657234,174.93,174.89,6.81272449]
[1753996483335,10.19815325,174.93,174.91,6.81272449]
[1753996483651,3.82158091,174.92,174.91,6.81272449]
[1753996484436,3.82158091,174.92,174.87,26.54]
[1753996484648,0.66,174.91,174.9,6.81272449]
[1753996484829,0.66,174.91,174.89,6.81272449]
[1753996485021,0.66,174.91,174.87,26.0]
[1753996485022,0.66,174.9,174.87,26.0]
[1753996485223,4.51158091,174.92,174.89,6.81272449]
[1753996485433,0.66,174.91,174.89,6.81272449]
[1753996487747,0.66,174.9,174.89,6.81272449]
[1753996488452,5.71738635,174.91,174.89,6.81272449]
[1753996488646,6.37738635,174.91,174.89,6.81272449]
[1753996489225,0.66,174.9,174.87,26.0]
[1753996489456,0.66,174.9,174.89,6.81272449]
[1753996490554,0.66,174.9,174.84,0.06]
[1753996490852,6.81272449,174.89,174.84,6.87272449]
[1753996491055,4.48104862,174.88,174.84,0.06]
[1753996491259,4.48104862,174.88,174.84,6.87272449]
[1753996491439,0.66,174.87,174.84,6.87272449]
[1753996491940,0.66,174.86,174.84,0.06]
[1753996492136,0.66,174.86,174.84,6.87272449]
[1753996492933,0.66,174.86,174.84,0.06]
[1753996493140,0.66,174.86,174.84,6.87272449]
[1753996494158,0.66,174.9,174.85,6.81272449]
[1753996494335,4.9069749,174.89,174.87,6.81272449]
[1753996494533,4.9069749,174.88,174.87,6.81272449]
[1753996494733,0.66,174.88,174.87,6.81272449]
[1753996495635,4.48235586,174.88,174.87,6.81272449]
[1753996497458,4.48235586,174.88,174.86,6.81272449]
[1753996497751,0.66,174.87,174.86,6.81272449]
[1753996498740,0.66,174.87,174.84,0.06]
[1753996498741,11.71935433,174.87,174.84,0.06]
[1753996498936,51.93508035,174.86,174.84,0.06]
[1753996499236,48.11272449,174.86,174.84,0.06]
[1753996499441,6.37918787,174.85,174.84,0.06]
[1753996500257,46.35891353,174.86,174.84,6.87272449]
[1753996500461,47.01891353,174.86,174.84,6.87272449]
[1753996500834,0.66,174.85,174.84,6.87272449]
[1753996501438,6.37918787,174.85,174.84,0.06]
[1753996501637,6.37918787,174.85,174.84,6.87272449]
[1753996502437,0.66,174.85,174.84,6.87272449]
[1753996502640,6.37918787,174.85,174.84,6.87272449]
[1753996503458,10.19880474,174.85,174.84,0.06]
[1753996503665,4.47961687,174.85,174.84,0.06]
[1753996503847,10.19880474,174.85,174.84,6.87272449]
[1753996505157,3.64440901,174.88,174.84,6.87272449]
[1753996505363,4.24196774,174.87,174.84,0.06]
[1753996505564,8.05939885,174.87,174.84,0.06]
[1753996505738,3.81743111,174.87,174.84,0.06]
[1753996506441,4.47743111,174.87,174.84,0.06]
[1753996506638,4.47743111,174.87,174.86,6.81272449]
[1753996506844,8.71334051,174.87,174.86,6.81272449]
[1753996507042,14.43187427,174.87,174.86,6.81272449]
[1753996508369,3.81743111,174.87,174.86,6.81272449]
[1753996508548,40.64,174.88,174.86,6.81272449]
[1753996508751,46.99787056,174.9,174.87,6.81272449]
[1753996509069,8.06365843,174.89,174.84,6.31931303]
[1753996509248,3.81964604,174.89,174.84,0.6]
[1753996509448,4.47964604,174.89,174.84,0.6]
[1753996509668,4.24625344,174.88,174.84,0.6]
[1753996510061,4.24625344,174.88,174.87,6.81272449]
[1753996510262,3.81964604,174.88,174.87,6.81272449]
[1753996511468,10.19753711,174.89,174.87,6.81272449]
[1753996511670,6.37789107,174.89,174.88,6.81272449]
[1753996511972,3.81994938,174.89,174.88,6.81272449]
[1753996512849,44.46994938,174.92,174.88,6.81272449]
[1753996513051,41.31,174.92,174.91,6.81272449]
[1753996513376,48.71807405,174.92,174.91,6.81272449]
[1753996513966,8.09807405,174.92,174.91,6.81272449]
[1753996514164,0.03,174.92,174.91,6.81272449]
[1753996516361,0.03,174.92,174.91,7.35272449]
[1753996516678,3.85012919,174.94,174.93,26.0]
[1753996516679,0.03,174.94,174.93,26.0]
[1753996516854,0.03,174.94,174.93,32.81272449]
[1753996517250,0.03,174.96,174.93,40.16544898]
[1753996517478,0.03,174.96,174.95,6.81272449]
[1753996520892,0.69,174.96,174.95,6.81272449]
[1753996521780,0.69,174.96,174.94,6.81272449]
[1753996521952,4.501764,174.96,174.93,6.81272449]
[1753996522164,0.66,174.95,174.93,6.81272449]
[1753996522777,5.71624556,174.94,174.93,6.81272449]
[1753996523075,6.37624556,174.94,174.93,6.81272449]
[1753996523775,40.6,174.95,174.93,6.81272449]
[1753996523776,0.03,174.96,174.93,6.81272449]
[1753996523982,0.03,175.0,174.95,13.62544898]
[1753996524152,0.03,175.0,174.98,6.81272449]
[1753996525013,13.21746322,174.99,174.87,30.20858847]
[1753996525288,13.21746322,174.99,174.85,10.0]
[1753996525289,6.81272449,174.96,174.91,6.81272449]
[1753996525656,7.47272449,174.95,174.9,6.81272449]
[1753996525886,6.37629094,174.94,174.91,6.81272449]
[1753996526055,5.71629094,174.94,174.91,6.81272449]
[1753996526259,6.37629094,174.94,174.91,6.81272449]
[1753996526989,6.37526547,174.97,174.93,10.08235714]
[1753996527157,0.66,174.96,174.94,10.08235714]
[1753996527657,0.66,174.95,174.94,10.08235714]
[1753996527857,6.37591883,174.95,174.94,10.08235714]
[1753996529887,6.37591883,174.95,174.91,26.06]
[1753996530070,6.37591883,174.95,174.94,10.08235714]
[1753996530683,6.37591883,174.95,174.93,10.08235714]
[1753996530981,6.37591883,174.95,174.94,10.08235714]
[1753996531978,6.37591883,174.95,174.93,10.08235714]
[1753996532179,0.66,174.94,174.92,10.08235714]
[1753996532680,0.66,174.93,174.92,10.08235714]
[1753996533279,5.71591883,174.95,174.92,10.08235714]
[1753996533280,6.37591883,174.95,174.92,10.08235714]
[1753996533785,5.71591883,174.95,174.92,10.08235714]
[1753996533972,5.71657234,174.93,174.92,10.08235714]
[1753996534181,6.37657234,174.93,174.92,10.08235714]
[1753996534375,5.71635412,174.94,174.92,10.08235714]
[1753996534767,6.37635412,174.94,174.92,10.08235714]
[1753996535857,0.66,174.93,174.92,10.08235714]
[1753996537587,4.46649019,174.95,174.92,10.08235714]
[1753996537787,5.71624556,174.94,174.91,26.06]
[1753996537994,6.37624556,174.94,174.92,10.08235714]
[1753996538803,0.66,174.93,174.91,0.06]
[1753996539993,5.71689915,174.92,174.91,0.06]
[1753996540493,6.37689915,174.92,174.91,0.06]
[1753996541980,46.93591883,174.95,174.91,10.14235714]
[1753996542183,46.93591883,174.95,174.93,10.08235714]
[1753996542499,0.66,174.94,174.93,10.08235714]
[1753996543194,46.27591883,174.95,174.93,10.08235714]
[1753996543399,46.93591883,174.95,174.94,10.08235714]
[1753996543594,50.74647234,174.95,174.94,10.08235714]
[1753996546372,44.37055351,174.95,174.94,10.08235714]
[1753996546592,0.03,174.96,174.94,10.08235714]
[1753996546900,9.55823263,174.96,174.95,6.80153343]
[1753996547195,4.5026405,174.96,174.95,6.80153343]
[1753996547999,10.21823263,174.96,174.95,6.80153343]
[1753996549480,14.45756086,174.96,174.95,6.80153343]
[1753996549683,4.5026405,174.96,174.95,6.80153343]
[1753996549899,4.5026405,174.96,174.95,6.86153343]
[1753996550103,3.8426405,174.96,174.95,6.86153343]
[1753996550505,0.03,174.96,174.95,6.86153343]
[1753996551197,0.03,174.96,174.95,7.40153343]
[1753996551511,0.03,174.96,174.95,6.86153343]
[1753996552288,0.03,174.96,174.95,7.40153343]
[1753996552513,0.03,174.96,174.95,6.86153343]
[1753996553503,0.69,174.96,174.95,0.06]
[1753996555208,6.40559213,174.96,174.95,0.06]
[1753996555510,14.46586495,174.96,174.95,0.06]
[1753996557899,78.59208235,174.96,174.95,0.06]
[1753996558393,85.52208839,174.96,174.95,0.06]
[1753996558786,61.93587099,174.96,174.95,0.06]
[1753996559116,55.00586495,174.96,174.95,0.06]
[1753996559613,50.76267819,174.96,174.95,0.06]
[1753996559913,55.00990315,174.96,174.95,0.06]
[1753996560093,55.00921945,174.96,174.95,0.06]
[1753996560709,61.81075288,174.96,174.95,0.06]
[1753996560904,85.52486333,174.96,174.95,0.06]
[1753996561612,99.78331496,174.96,174.93,0.06]
[1753996561814,8.72362732,174.95,174.93,0.06]
[1753996561992,61.12140631,174.94,174.93,0.06]
[1753996562188,16.78468397,174.93,174.91,0.06]
[1753996562402,55.40516075,174.92,174.91,0.06]
[1753996562617,49.26362732,174.92,174.91,0.06]
[1753996563598,54.98052647,174.92,174.91,0.06]
[1753996566735,54.32052647,174.92,174.91,0.06]
[1753996567035,48.60362732,174.92,174.91,6.86153343]
[1753996567247,3.81708606,174.92,174.91,6.86153343]
[1753996567627,3.81708606,174.95,174.91,7.40153343]
[1753996567819,3.81708606,174.95,174.94,6.80153343]
[1753996568019,48.60729993,174.95,174.94,6.80153343]
[1753996568217,48.60729993,174.95,174.94,7.34153343]
[1753996568624,8.06729993,174.95,174.94,7.34153343]
[1753996569038,3.81708606,174.95,174.94,7.34153343]
[1753996570230,3.81708606,174.95,174.94,6.80153343]
[1753996570538,8.06909576,174.95,174.94,6.80153343]
[1753996571022,3.81708606,174.95,174.94,6.80153343]
[1753996572138,49.33781081,174.95,174.91,6.86153343]
[1753996572325,8.76799189,174.94,174.91,6.86153343]
[1753996572529,48.60799189,174.93,174.91,6.86153343]
[1753996572841,3.81708606,174.92,174.91,6.86153343]
[1753996574024,3.81708606,174.92,174.91,0.06]
[1753996574216,3.81708606,174.92,174.91,6.86153343]
[1753996576644,0.03,174.95,174.91,7.40153343]
[1753996576848,3.82934631,174.94,174.91,0.6]
[1753996577034,3.82934631,174.94,174.93,6.80153343]
[1753996577823,53.58594169,174.94,174.91,0.06]
[1753996578028,8.78777352,174.93,174.91,0.06]
[1753996578233,8.08777352,174.92,174.91,0.06]
[1753996578745,8.78777352,174.92,174.91,0.06]
[1753996578923,55.04467267,174.92,174.91,0.06]
[1753996579120,61.84721507,174.92,174.91,0.06]
[1753996579321,66.10598463,174.92,174.91,0.06]
[1753996580633,59.3044512,174.92,174.91,0.06]
[1753996580826,69.39153975,174.92,174.91,0.06]
[1753996581032,88.30492155,174.92,174.91,1e-08]
[1753996581262,93.08115435,174.92,174.91,1e-08]
[1753996582045,16.78468397,174.91,174.89,1e-08]
[1753996582256,81.8680224,174.9,174.89,1e-08]
[1753996582431,82.5680224,174.9,174.89,1e-08]
[1753996582626,88.28557528,174.9,174.89,1e-08]
[1753996583553,93.07658657,174.9,174.89,1e-08]
[1753996584434,88.28557528,174.9,174.89,1e-08]
[1753996585938,88.28192436,174.9,174.89,1e-08]
[1753996586449,76.0697889,174.9,174.89,1e-08]
[1753996586636,35.5497889,174.9,174.89,1e-08]
[1753996586840,76.0697889,174.9,174.89,1e-08]
[1753996587243,71.81101934,174.9,174.89,1e-08]
[1753996587632,54.32633537,174.9,174.89,10.08708856]
[1753996587938,54.32633537,174.9,174.89,1e-08]
[1753996588139,54.32633537,174.9,174.89,10.08708856]
[1753996588334,50.06689919,174.9,174.89,10.08708856]
[1753996589453,50.06689919,174.9,174.89,1e-08]
[1753996589755,50.06689919,174.9,174.89,10.08708856]
[1753996590958,44.34934631,174.9,174.89,10.08708856]
[1753996591550,71.92111883,174.9,174.89,1e-08]
[1753996591756,80.83130911,174.9,174.89,1e-08]
[1753996591940,86.12738637,174.9,174.89,1e-08]
[1753996592253,13.79125652,174.9,174.89,10.08708856]
[1753996592458,3.82934631,174.9,174.89,10.08708856]
[1753996592757,40.52,174.9,174.89,10.08708856]
[1753996593846,44.33595844,174.9,174.89,10.08708856]
[1753996594957,50.05351132,174.9,174.89,10.08708856]
[1753996595156,50.75351132,174.9,174.89,10.08708856]
[1753996595544,44.33595844,174.9,174.89,10.08708856]
[1753996596050,50.05351132,174.9,174.89,10.08708856]